Workbook

Sheet Sheet1 (hidden)
A2: Flex | B2: January | C2: 2017
A3: A | B3: February | C3: 2018
A4: B | B4: March | C4: 2019
A5: C | B5: April | C5: 2020
A6: D | B6: May
B7: June
B8: July
B9: August
B10: September
B11: October
B12: November
B13: December

Sheet Employee
A1: Crockett Community College | F1: Name: | G1: Joe Somebody
A2: DAILY SCHEDULE, ITINERARY, & TIME AND EFFORT REPORT | F2: Work Schedule | G2: Month | H2: Year | I2: Revision | M2: Logic for Rounding Up or Down on three columns
F3: A | G3: February | H3: 2018 | I3: FALSE
I4: =IF(Employee!T11="","","Please add required Information: "&Employee!T11) -> 
L5: Columns | M5: =TRIM(O5&P5&Q5&R5) -> 1234 | O5: 1 | P5: 2 | Q5: 3 | R5: 4
D6: Summary of Work Hours and Nature of Service | E6: Actual | G6: Hours | H6: Worked | I6: Total Daily Holiday (8 hours) and Leave Hours (as reported in ESS) | J6: Total Hours in Period* = Actual Hours Worked + Holiday and Leave | M6: Hrs | N6: =SUM(O6:R6) -> 144 | O6: =Employee!E102 -> 11 | P6: =Employee!F102 -> 115 | Q6: =Employee!G102 -> 18 | R6: =Employee!H102 -> 0
E7: =IF(F106="","",F106&" Actual Number of Hours") -> Carl Perkins Administration Actual Number of Hours | F7: =IF(F107="","",F107&" Actual Number of Hours") -> Carl Perkins Instructional Actual Number of Hours | G7: =IF(F108="","",F108&" Actual Number of Hours") -> Carl Perkins Guidance Actual Number of Hours | H7: =IF(F109="","",F109&" Actual Number of Hours") -> Non-Carl Perkins Duties Actual Number of Hours | M7: Pcts | N7: =SUM(O7:R7) -> 1 | O7: =N8-P7-Q7-R7 -> 0.0763 | P7: =ROUNDUP(P6/N6,4) -> 0.7987 | Q7: =ROUNDDOWN(Q6/N6,4) -> 0.125 | R7: =ROUNDDOWN(R6/N6,4) -> 0
A8: Month | B8: Day | C8: Location(s) | D8: (Describe nature of work performed, meetings attended, service, visits, persons contacted, etc... ) | N8: 1
A9: =+G$3 -> February | B9: 1 | C9: Tulsa | D9: Instruction | F9: 6 | J9: =SUM(E9:G11:I11) -> 8
D10: Guidance and Counseling | G10: 2 | N10: Required Notes:
N11: =IF(Employee!G1="","* Name ","") ->  | O11: =IF(Employee!F3="","* Schedule ","") ->  | P11: =IF(Employee!F3="","* Month ","") ->  | Q11: =IF(Employee!G3="","* Month ","") ->  | R11: =IF(Employee!H3="","* Year","") ->  | T11: =CONCATENATE(N11,O11,Q11,R11) -> 
A12: =+G$3 -> February | B12: 2 | C12: Tulsa | D12: Instruction | F12: 6 | J12: =SUM(E12:G14:I14) -> 8
D13: Prepared Budget for Supplemental Grant | E13: 2
A15: =+G$3 -> February | B15: 3 | J15: =SUM(E15:G17:I17) -> 0
M16: =D16 -> 0
M17: 0
A18: =+G$3 -> February | B18: 4 | J18: =SUM(E18:G20:I20) -> 0 | M18: 0
M19: 0
M20: 0
A21: =+G$3 -> February | B21: 5 | C21: Tulsa | D21: Instruction | F21: 7 | J21: =SUM(E21:G23:I23) -> 8 | M21: Instruction
D22: Submitted Supplemental Grant | E22: 1 | M22: Submitted Supplemental Grant
M23: 0
A24: =+G$3 -> February | B24: 6 | C24: Tulsa | D24: Career Fair | G24: 8 | J24: =SUM(E24:G26:I26) -> 8 | M24: Career Fair
M25: 0
M26: 0
A27: =+G$3 -> February | B27: 7 | C27: Tulsa | D27: Instruction | F27: 8 | J27: =SUM(E27:G29:I29) -> 8 | M27: Instruction
M28: 0
M29: 0
A30: =+G$3 -> February | B30: 8 | C30: Tulsa | D30: Instruction | F30: 8 | J30: =SUM(E30:G32:I32) -> 8 | M30: Instruction
M31: 0
M32: 0
A33: =+G$3 -> February | B33: 9 | C33: Tulsa | D33: Instruction | F33: 8 | J33: =SUM(E33:G35:I35) -> 8 | M33: Instruction
M34: 0
M35: 0
A36: =+G$3 -> February | B36: 10 | J36: =SUM(E36:G38:I38) -> 0 | M36: 0
M37: 0
M38: 0
A39: =+G$3 -> February | B39: 11 | J39: =SUM(E39:G41:I41) -> 0 | M39: 0
M40: 0
M41: 0
A42: =+G$3 -> February | B42: 12 | C42: Tulsa | D42: Instruction | F42: 8 | J42: =SUM(E42:G44:I44) -> 8 | M42: Instruction
M43: 0
M44: 0
A45: =+G$3 -> February | B45: 13 | C45: Tulsa | D45: Instruction | F45: 8 | J45: =SUM(E45:G47:I47) -> 8 | M45: Instruction
M46: 0
M47: 0
A48: =+G$3 -> February | B48: 14 | C48: Tulsa | D48: Professional Development for Carl Perkins- Administration of Perkins Grant | E48: 8 | J48: =SUM(E48:G50:I50) -> 8 | M48: =D48 -> Professional Development for Carl Perkins- Administration of Perkins Grant
M49: 0
M50: 0
A51: =+G$3 -> February | B51: 15 | C51: Tulsa | D51: Professional Development for Carl Perkins- Teacher Academy | F51: 8 | J51: =SUM(E51:G53:I53) -> 8 | M51: Professional Development for Carl Perkins- Teacher Academy
M52: 0
M53: 0
A54: =+G$3 -> February | B54: 16 | C54: Tulsa | D54: Instruction | F54: 8 | J54: =SUM(E54:G56:I56) -> 8 | M54: Instruction
M55: 0
M56: 0
A57: =+G$3 -> February | B57: 17 | J57: =SUM(E57:G59:I59) -> 0 | M57: 0
M58: 0
M59: 0
A60: =+G$3 -> February | B60: 18 | J60: =SUM(E60:G62:I62) -> 0 | M60: 0
M61: 0
M62: 0
A63: =+G$3 -> February | B63: 19 | C63: Tulsa | D63: President's Day | I63: 8 | J63: =SUM(E63:G65:I65) -> 8 | M63: President's Day
M64: 0
M65: 0
A66: =+G$3 -> February | B66: 20 | C66: Tulsa | D66: Instruction | F66: 8 | J66: =SUM(E66:G68:I68) -> 8 | M66: Instruction
M67: 0
M68: 0
A69: =+G$3 -> February | B69: 21 | C69: Tulsa | D69: Instruction | F69: 8 | J69: =SUM(E69:G71:I71) -> 8 | M69: Instruction
M70: 0
M71: 0
A72: =+G$3 -> February | B72: 22 | C72: Tulsa | D72: Instruction | F72: 8 | J72: =SUM(E72:G74:I74) -> 8 | M72: Instruction
M73: 0
M74: 0
A75: =+G$3 -> February | B75: 23 | C75: Tulsa | D75: Instruction | F75: 8 | J75: =SUM(E75:G77:I77) -> 8 | M75: Instruction
M76: 0
M77: 0
A78: =+G$3 -> February | B78: 24 | J78: =SUM(E78:G80:I80) -> 0 | M78: 0
M79: 0
M80: =D80 -> 0
A81: =+G$3 -> February | B81: 25 | J81: =SUM(E81:G83:I83) -> 0 | M81: 0
M82: 0
M83: 0
A84: =+G$3 -> February | B84: 26 | C84: Tulsa | D84: Instruction | F84: 8 | J84: =SUM(E84:G86:I86) -> 8 | M84: Instruction
M85: 0
M86: 0
A87: =+G$3 -> February | B87: 27 | C87: Tulsa | D87: Career Fair | G87: 8 | J87: =SUM(E87:G89:I89) -> 8 | M87: Career Fair
M88: 0
M89: 0
A90: =+G$3 -> February | B90: 28 | C90: Tulsa | D90: Annual Leave | I90: 8 | J90: =SUM(E90:G92:I92) -> 8 | M90: Annual Leave
M91: 0
M92: 0
A93: =+G$3 -> February | B93: 29 | J93: =SUM(E93:G95:I95) -> 0 | M93: 0
M94: 0
M95: 0
A96: =+G$3 -> February | B96: 30 | J96: =SUM(E96:G98:I98) -> 0 | M96: 0
M97: 0
M98: 0
A99: =+G$3 -> February | B99: 31 | J99: =SUM(E99:G101:I101) -> 0 | M99: 0
M100: 0
M101: 0
D102: TOTAL ACTUAL HOURS WORKED: | E102: =SUM(E9:E101) -> 11 | F102: =SUM(F9:F101) -> 115 | G102: 18 | H102: =SUM(H9:H101) -> 0 | I102: 16 | J102: 160
D103: FUNDING DISTRIBUTION PERCENTAGE: | E103: =Employee!O7 -> 0.0763 | F103: =Employee!P7 -> 0.7987 | G103: =Employee!Q7 -> 0.125 | H103: =Employee!R7 -> 0 | J103: =SUM(E103:H103) -> 1
J104: (Should equal 100%)
A105: I Certify: | F105: Funding Source
B106: By signing this report, I certify to the best of my knowledge and belief that the report is true, complete, and accurate, and the expenditures, disbursements and cash receipts are for the purposes and objectives set forth in the terms and conditions of the Federal award. I am aware that any false, fictitious, or fraudulent information, or the omission of any material fact, may subject me to criminal, civil or administrative penalties for fraud, false statements, false claims or otherwise. (U.S. Code Title 18, Section 1001 and Title 31, Sections 3729-3730 and 3801-3812). | F106: Carl Perkins Administration
F107: Carl Perkins Instructional
F108: Carl Perkins Guidance
F109: Non-Carl Perkins Duties
C111: Employee:
A112: Reviewed and Approved: | D112: =IF(D111="","Employee's Signature Required","") -> Employee's Signature Required | E112: Date:
C113: Supervisor: | F113: =IF(F112="","Missing Date","") -> Missing Date
D114: =IF(D113="","Supervisor's Signature Required","") -> Supervisor's Signature Required | E114: Date:
C115: Employee: | F115: =IF(F114="","Missing Date","") -> Missing Date
A116: Reviewed and Approved: | D116: =IF(D115="","Employee's Signature Required","") -> Employee's Signature Required | E116: Date: | G116: Revised
C117: Supervisor: | F117: =IF(F116="","Missing Date","") -> Missing Date
D118: =IF(D117="","Supervisor's Signature Required","") -> Supervisor's Signature Required | E118: Date: | G118: Revised
C119: Comments: | F119: =IF(F118="","Missing Date","") -> Missing Date

Sheet Annual Example 1
A1: Allocation of $200,000 | D1: Max admin is $200,000*0.05= $10,000
A2: $150,000 spent on supplies
A3: $20,000 spent on equipment
A4: $30,000 spent on CTE instructor/coordinator
A6: Month | B6: Year | C6: CP Admnistration | D6: CP Instruciton | E6: CP Guidance | F6: Non-CP duties
A7: July | B7: 2017 | C7: 0.02 | D7: 0.8 | E7: 0.18 | F7: 0
A8: August | B8: 2017 | C8: 0 | D8: 1 | E8: 0 | F8: 0
A9: September | B9: 2017 | C9: 0 | D9: 1 | E9: 0 | F9: 0
A10: October | B10: 2017 | C10: 0 | D10: 1 | E10: 0 | F10: 0
A11: November | B11: 2017 | C11: 0 | D11: 1 | E11: 0 | F11: 0
A12: December | B12: 2017 | C12: 0.02 | D12: 0.7 | E12: 0.28 | F12: 0
A13: January | B13: 2018 | C13: 0 | D13: 1 | E13: 0 | F13: 0
A14: February | B14: 2018 | C14: 0.0763 | D14: 0.7987 | E14: 0.125 | F14: 0
A15: March | B15: 2018 | C15: 0.05 | D15: 0.95 | E15: 0 | F15: 0
A16: April | B16: 2018 | C16: 0.2 | D16: 0.7 | E16: 0.1 | F16: 0
A17: May | B17: 2018 | C17: 0.08 | D17: 0.65 | E17: 0.27 | F17: 0
A18: June | B18: 2018 | C18: 0.02 | D18: 0.88 | E18: 0.1 | F18: 0
A19: Average | C19: =AVERAGE(C7:C18) -> 0.03885833333 | D19: =AVERAGE(D7:D18) -> 0.873225 | E19: =AVERAGE(E7:E18) -> 0.08791666667 | F19: =AVERAGE(F7:F18) -> 0
A21: Salary of CTE instructor/director is $50,000
A22: Benefits are $20,000
A24: They are claiming
B25: Admin to Claim | C25: Instruction | D25: Guidance
A26: Salary | B26: =G26*C19 -> 1942.916667 | C26: 10000 | D26: 10000 | G26: 50000
A27: Benefits | B27: =G27*C19 -> 777.1666667 | C27: 2000 | D27: 5279.92 | G27: 20000
A28: Total | B28: =SUM(B26:B27) -> 2720.083333 | C28: =SUM(C26:C27) -> 12000 | D28: =SUM(D26:D27) -> 15279.92 | E28: =B28+C28+D28 -> 30000.00333 | G28: =SUM(G26:G27) -> 70000
A30: Is this allowable???
A32: yes
A33: why?

Sheet Annual Example 2
A1: Allocation of $200,000 | D1: Max admin is $200,000*0.05= $10,000
A2: $150,000 spent on supplies
A3: $20,000 spent on equipment
A4: $30,000 spent on CTE instructor/coordinator
A6: Month | B6: Year | C6: CP Admnistration | D6: CP Instruction | E6: CP Guidance | F6: Non-CP duties
A7: July | B7: 2017 | C7: 0.22 | D7: 0.6 | E7: 0.18 | F7: 0
A8: August | B8: 2017 | C8: 0.1 | D8: 0.9 | E8: 0 | F8: 0
A9: September | B9: 2017 | C9: 0.1 | D9: 0.9 | E9: 0 | F9: 0
A10: October | B10: 2017 | C10: 0.1 | D10: 0.9 | E10: 0 | F10: 0
A11: November | B11: 2017 | C11: 0.1 | D11: 0.9 | E11: 0 | F11: 0
A12: December | B12: 2017 | C12: 0.32 | D12: 0.4 | E12: 0.28 | F12: 0
A13: January | B13: 2018 | C13: 0.2 | D13: 0.8 | E13: 0 | F13: 0
A14: February | B14: 2018 | C14: 0.0763 | D14: 0.7987 | E14: 0.125 | F14: 0
A15: March | B15: 2018 | C15: 0.05 | D15: 0.95 | E15: 0 | F15: 0
A16: April | B16: 2018 | C16: 0.2 | D16: 0.7 | E16: 0.1 | F16: 0
A17: May | B17: 2018 | C17: 0.08 | D17: 0.65 | E17: 0.27 | F17: 0
A18: June | B18: 2018 | C18: 0.22 | D18: 0.68 | E18: 0.1 | F18: 0
A19: Average | C19: =AVERAGE(C7:C18) -> 0.1471916667 | D19: =AVERAGE(D7:D18) -> 0.7648916667 | E19: =AVERAGE(E7:E18) -> 0.08791666667 | F19: =AVERAGE(F7:F18) -> 0
A21: Salary of CTE instructor/director is $50,000
A22: Benefits are $20,000
A24: They are claiming
B25: Admin to Claim | C25: Instruction | D25: Guidance
A26: Salary | B26: =G26*C19 -> 7359.583333 | C26: 10000 | D26: 10000 | G26: 50000
A27: Benefits | B27: =G27*C19 -> 2943.833333 | C27: 2000 | D27: 5279.92 | G27: 20000
A28: Total | B28: =SUM(B26:B27) -> 10303.41667 | C28: =SUM(C26:C27) -> 12000 | D28: =SUM(D26:D27) -> 15279.92 | E28: =B28+C28+D28 -> 37583.33667 | G28: =SUM(G26:G27) -> 70000
A30: Is this allowable???
A32: no
A33: why?
A34: $303.42 over limit allowed
